[Event "Live Chess"]
[Site "Chess.com"]
[Date "2010.12.14"]
[Round "-"]
[White "jepone"]
[Black "hipposcottimus"]
[Result "0-1"]
[CurrentPosition "8/8/p1p3k1/1p4p1/P3K1P1/1P6/8/8 w - -"]
[Timezone "UTC"]
[ECO "C31"]
[ECOUrl "https://www.chess.com/openings/Kings-Gambit-Declined-Falkbeer-Countergambit"]
[UTCDate "2010.12.14"]
[UTCTime "04:17:16"]
[WhiteElo "1508"]
[BlackElo "1688"]
[TimeControl "60"]
[Termination "hipposcottimus won on time"]
[StartTime "04:17:16"]
[EndDate "2010.12.14"]
[EndTime "04:19:20"]
[Link "https://www.chess.com/game/live/77096500"]

1. e4 {[%clk 0:01:00]} 1... e5 {[%clk 0:01:00]} 2. f4 {[%clk 0:00:58.7]} 2... d5 {[%clk 0:00:59.6]} 3. fxe5 {[%clk 0:00:56.8]} 3... dxe4 {[%clk 0:00:59.3]} 4. Nc3 {[%clk 0:00:51.1]} 4... Nc6 {[%clk 0:00:51.1]} 5. Nxe4 {[%clk 0:00:49.8]} 5... Nxe5 {[%clk 0:00:50.4]} 6. d3 {[%clk 0:00:45.4]} 6... Bd6 {[%clk 0:00:49.9]} 7. Bf4 {[%clk 0:00:44.5]} 7... Nf6 {[%clk 0:00:47.9]} 8. Nxf6+ {[%clk 0:00:40.1]} 8... Qxf6 {[%clk 0:00:47]} 9. Nf3 {[%clk 0:00:39.7]} 9... Nxf3+ {[%clk 0:00:45.7]} 10. Qxf3 {[%clk 0:00:37.9]} 10... Bxf4 {[%clk 0:00:44.6]} 11. Qe4+ {[%clk 0:00:35.8]} 11... Be6 {[%clk 0:00:41]} 12. Be2 {[%clk 0:00:31.2]} 12... Qh4+ {[%clk 0:00:39.9]} 13. g3 {[%clk 0:00:27.9]} 13... Bxg3+ {[%clk 0:00:39.1]} 14. hxg3 {[%clk 0:00:25.5]} 14... Qxe4 {[%clk 0:00:34.4]} 15. dxe4 {[%clk 0:00:24.3]} 15... O-O-O {[%clk 0:00:34.1]} 16. O-O {[%clk 0:00:22.7]} 16... f5 {[%clk 0:00:31.6]} 17. exf5 {[%clk 0:00:21.4]} 17... Bd5 {[%clk 0:00:31]} 18. Bf3 {[%clk 0:00:19.7]} 18... g6 {[%clk 0:00:30.5]} 19. Bxd5 {[%clk 0:00:18.4]} 19... Rxd5 {[%clk 0:00:30.3]} 20. fxg6 {[%clk 0:00:17.7]} 20... hxg6 {[%clk 0:00:29.4]} 21. Rf2 {[%clk 0:00:16.8]} 21... Rhd8 {[%clk 0:00:29.1]} 22. Raf1 {[%clk 0:00:16]} 22... Rd2 {[%clk 0:00:27.7]} 23. Rf8 {[%clk 0:00:14.4]} 23... Rxc2 {[%clk 0:00:25.9]} 24. Rxd8+ {[%clk 0:00:12.1]} 24... Kxd8 {[%clk 0:00:25.6]} 25. Rd1+ {[%clk 0:00:11.7]} 25... Ke7 {[%clk 0:00:24.9]} 26. Rb1 {[%clk 0:00:10.5]} 26... Rc4 {[%clk 0:00:23.2]} 27. b3 {[%clk 0:00:09.6]} 27... Rg4 {[%clk 0:00:22.8]} 28. Kg2 {[%clk 0:00:08.1]} 28... c6 {[%clk 0:00:22.1]} 29. a4 {[%clk 0:00:07.3]} 29... Rg5 {[%clk 0:00:21.9]} 30. Re1+ {[%clk 0:00:06.8]} 30... Kd6 {[%clk 0:00:20.5]} 31. Rd1+ {[%clk 0:00:06.5]} 31... Ke6 {[%clk 0:00:19.7]} 32. Re1+ {[%clk 0:00:05.9]} 32... Kf6 {[%clk 0:00:19.4]} 33. Rf1+ {[%clk 0:00:05.6]} 33... Rf5 {[%clk 0:00:19]} 34. Rxf5+ {[%clk 0:00:04.8]} 34... Kxf5 {[%clk 0:00:18.7]} 35. Kf3 {[%clk 0:00:04.3]} 35... g5 {[%clk 0:00:17.1]} 36. g4+ {[%clk 0:00:03.7]} 36... Kg6 {[%clk 0:00:16.8]} 37. Kg3 {[%clk 0:00:02.9]} 37... b6 {[%clk 0:00:15.9]} 38. Kf3 {[%clk 0:00:02.2]} 38... a6 {[%clk 0:00:15.5]} 39. Ke4 {[%clk 0:00:00.7]} 39... b5 {[%clk 0:00:15.1]} 0-1

[Event "Live Chess"]
[Site "Chess.com"]
[Date "2010.12.14"]
[Round "-"]
[White "hipposcottimus"]
[Black "jepone"]
[Result "1-0"]
[CurrentPosition "3r3k/p1r2pQp/1p2qP1p/8/4p3/2P5/PP4PP/R4RK1 b - -"]
[Timezone "UTC"]
[ECO "C50"]
[ECOUrl "https://www.chess.com/openings/Italian-Game"]
[UTCDate "2010.12.14"]
[UTCTime "04:15:18"]
[WhiteElo "1684"]
[BlackElo "1512"]
[TimeControl "60"]
[Termination "hipposcottimus won by checkmate"]
[StartTime "04:15:18"]
[EndDate "2010.12.14"]
[EndTime "04:17:03"]
[Link "https://www.chess.com/game/live/77096122"]

1. e4 {[%clk 0:01:00]} 1... e5 {[%clk 0:01:00]} 2. Nf3 {[%clk 0:00:59.7]} 2... Nc6 {[%clk 0:00:58.3]} 3. Bc4 {[%clk 0:00:59.2]} 3... b6 {[%clk 0:00:57.5]} 4. d4 {[%clk 0:00:57.3]} 4... Bb7 {[%clk 0:00:57.1]} 5. d5 {[%clk 0:00:56.6]} 5... Na5 {[%clk 0:00:55.8]} 6. Qe2 {[%clk 0:00:53.1]} 6... Nxc4 {[%clk 0:00:53.7]} 7. Qxc4 {[%clk 0:00:52.8]} 7... c6 {[%clk 0:00:53.1]} 8. Nc3 {[%clk 0:00:50.2]} 8... Rc8 {[%clk 0:00:50.7]} 9. Ng5 {[%clk 0:00:45.9]} 9... cxd5 {[%clk 0:00:49.4]} 10. Qb3 {[%clk 0:00:43.8]} 10... Nh6 {[%clk 0:00:45.9]} 11. Nxd5 {[%clk 0:00:42.7]} 11... Bxd5 {[%clk 0:00:43.6]} 12. Qxd5 {[%clk 0:00:41.7]} 12... Be7 {[%clk 0:00:40.1]} 13. Nf3 {[%clk 0:00:38.1]} 13... O-O {[%clk 0:00:39.1]} 14. Bxh6 {[%clk 0:00:36.4]} 14... gxh6 {[%clk 0:00:36.8]} 15. Nxe5 {[%clk 0:00:36.1]} 15... d6 {[%clk 0:00:29.4]} 16. Nc6 {[%clk 0:00:31.3]} 16... Qd7 {[%clk 0:00:27.5]} 17. Nxe7+ {[%clk 0:00:29.7]} 17... Qxe7 {[%clk 0:00:26.5]} 18. O-O {[%clk 0:00:29.4]} 18... Rfd8 {[%clk 0:00:22.9]} 19. Qd3 {[%clk 0:00:29.1]} 19... Rc7 {[%clk 0:00:21.8]} 20. f4 {[%clk 0:00:27.4]} 20... Rdc8 {[%clk 0:00:21.4]} 21. c3 {[%clk 0:00:24.5]} 21... Qd7 {[%clk 0:00:18.9]} 22. Rfd1 {[%clk 0:00:21.5]} 22... Rd8 {[%clk 0:00:17.1]} 23. Qg3+ {[%clk 0:00:21.2]} 23... Kh8 {[%clk 0:00:15.5]} 24. f5 {[%clk 0:00:20.9]} 24... d5 {[%clk 0:00:14]} 25. Rf1 {[%clk 0:00:18.8]} 25... dxe4 {[%clk 0:00:12.7]} 26. f6 {[%clk 0:00:18.5]} 26... Qe6 {[%clk 0:00:11.5]} 27. Qg7# {[%clk 0:00:17.5]} 1-0

[Event "Live Chess"]
[Site "Chess.com"]
[Date "2010.12.14"]
[Round "-"]
[White "jepone"]
[Black "hipposcottimus"]
[Result "1-0"]
[CurrentPosition "4r1k1/pp3ppp/3r4/8/2p5/2Pb1N2/PP3PPP/4R1K1 w - -"]
[Timezone "UTC"]
[ECO "C22"]
[ECOUrl "https://www.chess.com/openings/Center-Game-Accepted-Normal-Variation"]
[UTCDate "2010.12.14"]
[UTCTime "04:13:34"]
[WhiteElo "1517"]
[BlackElo "1679"]
[TimeControl "60"]
[Termination "jepone won by resignation"]
[StartTime "04:13:34"]
[EndDate "2010.12.14"]
[EndTime "04:15:12"]
[Link "https://www.chess.com/game/live/77095728"]

1. e4 {[%clk 0:01:00]} 1... e5 {[%clk 0:01:00]} 2. d4 {[%clk 0:00:57.5]} 2... exd4 {[%clk 0:00:58.5]} 3. Qxd4 {[%clk 0:00:57]} 3... Nc6 {[%clk 0:00:58.2]} 4. Qd3 {[%clk 0:00:55.9]} 4... d6 {[%clk 0:00:57.9]} 5. Nf3 {[%clk 0:00:55.3]} 5... Nf6 {[%clk 0:00:55.7]} 6. Nc3 {[%clk 0:00:53.8]} 6... Nb4 {[%clk 0:00:54.2]} 7. Qd2 {[%clk 0:00:52.1]} 7... Be7 {[%clk 0:00:51.8]} 8. Nd5 {[%clk 0:00:51.2]} 8... Nbxd5 {[%clk 0:00:49.5]} 9. exd5 {[%clk 0:00:50.6]} 9... O-O {[%clk 0:00:48.2]} 10. Bc4 {[%clk 0:00:49.5]} 10... Ne4 {[%clk 0:00:45.6]} 11. Qd3 {[%clk 0:00:45.8]} 11... Bf5 {[%clk 0:00:45]} 12. Qe2 {[%clk 0:00:40]} 12... c6 {[%clk 0:00:41.6]} 13. O-O {[%clk 0:00:38.8]} 13... cxd5 {[%clk 0:00:39.8]} 14. Bxd5 {[%clk 0:00:38.5]} 14... Nf6 {[%clk 0:00:36.2]} 15. Bc4 {[%clk 0:00:34.8]} 15... Bg6 {[%clk 0:00:35]} 16. Re1 {[%clk 0:00:34.1]} 16... d5 {[%clk 0:00:31.3]} 17. Qxe7 {[%clk 0:00:31.3]} 17... dxc4 {[%clk 0:00:29.4]} 18. Qxd8 {[%clk 0:00:25.4]} 18... Rfxd8 {[%clk 0:00:29.1]} 19. Bg5 {[%clk 0:00:24.1]} 19... Rd6 {[%clk 0:00:27.9]} 20. Bxf6 {[%clk 0:00:22.6]} 20... Rxf6 {[%clk 0:00:27]} 21. c3 {[%clk 0:00:19.5]} 21... Rd8 {[%clk 0:00:25.7]} 22. Re2 {[%clk 0:00:18.7]} 22... Rfd6 {[%clk 0:00:24.8]} 23. Rae1 {[%clk 0:00:16]} 23... Bd3 {[%clk 0:00:23.6]} 24. Re8+ {[%clk 0:00:14.7]} 24... Rxe8 {[%clk 0:00:19.5]} 1-0

[Event "Live Chess"]
[Site "Chess.com"]
[Date "2010.12.14"]
[Round "-"]
[White "hipposcottimus"]
[Black "jepone"]
[Result "1-0"]
[CurrentPosition "5rk1/pb3r1p/1p2Q1p1/8/8/8/P4PPP/5RK1 b - -"]
[Timezone "UTC"]
[ECO "B21"]
[ECOUrl "https://www.chess.com/openings/Sicilian-Defense-Smith-Morra-Gambit-2...d5"]
[UTCDate "2010.12.14"]
[UTCTime "04:11:25"]
[WhiteElo "1690"]
[BlackElo "1504"]
[TimeControl "60"]
[Termination "hipposcottimus won on time"]
[StartTime "04:11:25"]
[EndDate "2010.12.14"]
[EndTime "04:13:27"]
[Link "https://www.chess.com/game/live/77095277"]

1. e4 {[%clk 0:01:00]} 1... c5 {[%clk 0:01:00]} 2. d4 {[%clk 0:00:58.7]} 2... d5 {[%clk 0:00:58.6]} 3. e5 {[%clk 0:00:54.8]} 3... c4 {[%clk 0:00:55.6]} 4. c3 {[%clk 0:00:53.1]} 4... f6 {[%clk 0:00:53.6]} 5. b3 {[%clk 0:00:52.5]} 5... fxe5 {[%clk 0:00:52]} 6. bxc4 {[%clk 0:00:51.3]} 6... exd4 {[%clk 0:00:51.3]} 7. cxd4 {[%clk 0:00:50.5]} 7... dxc4 {[%clk 0:00:49.7]} 8. Bxc4 {[%clk 0:00:50]} 8... Nf6 {[%clk 0:00:47.9]} 9. Qf3 {[%clk 0:00:47.7]} 9... Nc6 {[%clk 0:00:45.3]} 10. Be3 {[%clk 0:00:43.2]} 10... Nxd4 {[%clk 0:00:42.2]} 11. Bxd4 {[%clk 0:00:42.9]} 11... Qxd4 {[%clk 0:00:40.8]} 12. Nc3 {[%clk 0:00:40.7]} 12... Qxc4 {[%clk 0:00:39.5]} 13. Nge2 {[%clk 0:00:40]} 13... Nd5 {[%clk 0:00:34.2]} 14. O-O {[%clk 0:00:38.7]} 14... Nxc3 {[%clk 0:00:32.4]} 15. Nxc3 {[%clk 0:00:38.5]} 15... Qc6 {[%clk 0:00:24.4]} 16. Qh5+ {[%clk 0:00:35.8]} 16... Qg6 {[%clk 0:00:22.7]} 17. Qf3 {[%clk 0:00:34.5]} 17... Qf6 {[%clk 0:00:18.7]} 18. Qe3 {[%clk 0:00:33.5]} 18... g6 {[%clk 0:00:17.5]} 19. Rfe1 {[%clk 0:00:32.7]} 19... Bg7 {[%clk 0:00:16.9]} 20. Ne4 {[%clk 0:00:32.4]} 20... O-O {[%clk 0:00:16.1]} 21. Nxf6+ {[%clk 0:00:31.1]} 21... Bxf6 {[%clk 0:00:15.8]} 22. Qh3 {[%clk 0:00:26.6]} 22... Bxa1 {[%clk 0:00:14.6]} 23. Qh6 {[%clk 0:00:23.3]} 23... b6 {[%clk 0:00:10.7]} 24. Rxa1 {[%clk 0:00:21.1]} 24... Bb7 {[%clk 0:00:09.4]} 25. Rf1 {[%clk 0:00:19.6]} 25... Rf6 {[%clk 0:00:08.2]} 26. Qe3 {[%clk 0:00:18]} 26... Raf8 {[%clk 0:00:07.5]} 27. Qxe7 {[%clk 0:00:16.6]} 27... R6f7 {[%clk 0:00:06.5]} 28. Qe6 {[%clk 0:00:14.8]} 28... Kg7 {[%clk 0:00:02.7]} 29. Qe5+ {[%clk 0:00:13]} 29... Kg8 {[%clk 0:00:01]} 30. Qe6 {[%clk 0:00:12.2]} 1-0

[Event "Live Chess"]
[Site "Chess.com"]
[Date "2010.12.14"]
[Round "-"]
[White "jepone"]
[Black "hipposcottimus"]
[Result "0-1"]
[CurrentPosition "1k3r2/ppp1n1pp/2n5/3p4/8/4qN2/6BP/5QK1 w - -"]
[Timezone "UTC"]
[ECO "C31"]
[ECOUrl "https://www.chess.com/openings/Kings-Gambit-Declined-Falkbeer-Countergambit"]
[UTCDate "2010.12.14"]
[UTCTime "04:09:22"]
[WhiteElo "1508"]
[BlackElo "1686"]
[TimeControl "60"]
[Termination "hipposcottimus won on time"]
[StartTime "04:09:22"]
[EndDate "2010.12.14"]
[EndTime "04:11:15"]
[Link "https://www.chess.com/game/live/77094885"]

1. e4 {[%clk 0:01:00]} 1... e5 {[%clk 0:01:00]} 2. f4 {[%clk 0:00:59.7]} 2... d5 {[%clk 0:00:59]} 3. d3 {[%clk 0:00:57.2]} 3... exf4 {[%clk 0:00:55.6]} 4. Nf3 {[%clk 0:00:55.7]} 4... Bg4 {[%clk 0:00:51.8]} 5. e5 {[%clk 0:00:54.1]} 5... Bxf3 {[%clk 0:00:51.2]} 6. Qxf3 {[%clk 0:00:51.9]} 6... Qh4+ {[%clk 0:00:50.8]} 7. g3 {[%clk 0:00:47.4]} 7... fxg3 {[%clk 0:00:50.4]} 8. Qxg3 {[%clk 0:00:46.6]} 8... Qd4 {[%clk 0:00:47.8]} 9. Bg2 {[%clk 0:00:40.7]} 9... Nc6 {[%clk 0:00:44.8]} 10. Be3 {[%clk 0:00:40.3]} 10... Qxb2 {[%clk 0:00:42.5]} 11. O-O {[%clk 0:00:28.6]} 11... Qxa1 {[%clk 0:00:39.5]} 12. Nd2 {[%clk 0:00:26]} 12... Qxa2 {[%clk 0:00:38.1]} 13. Bg5 {[%clk 0:00:21.1]} 13... Be7 {[%clk 0:00:35.3]} 14. Bxe7 {[%clk 0:00:19.5]} 14... Ngxe7 {[%clk 0:00:35]} 15. e6 {[%clk 0:00:18.8]} 15... fxe6 {[%clk 0:00:31.9]} 16. Qf3 {[%clk 0:00:17.9]} 16... O-O-O {[%clk 0:00:30.2]} 17. Qf7 {[%clk 0:00:16.6]} 17... Rhf8 {[%clk 0:00:27.1]} 18. Qxe6+ {[%clk 0:00:15.1]} 18... Kb8 {[%clk 0:00:25.3]} 19. Rxf8 {[%clk 0:00:14]} 19... Rxf8 {[%clk 0:00:23.7]} 20. Qe1 {[%clk 0:00:04.5]} 20... Qxc2 {[%clk 0:00:21.6]} 21. Nf3 {[%clk 0:00:01.9]} 21... Qxd3 {[%clk 0:00:19.6]} 22. Qf1 {[%clk 0:00:00.7]} 22... Qe3+ {[%clk 0:00:17.8]} 0-1

[Event "Live Chess"]
[Site "Chess.com"]
[Date "2010.12.14"]
[Round "-"]
[White "hipposcottimus"]
[Black "jepone"]
[Result "1-0"]
[CurrentPosition "8/8/3Q2k1/5ppp/8/1P4P1/P4PKP/8 b - -"]
[Timezone "UTC"]
[ECO "B20"]
[ECOUrl "https://www.chess.com/openings/Sicilian-Defense"]
[UTCDate "2010.12.14"]
[UTCTime "04:06:57"]
[WhiteElo "1682"]
[BlackElo "1512"]
[TimeControl "60"]
[Termination "hipposcottimus won on time"]
[StartTime "04:06:57"]
[EndDate "2010.12.14"]
[EndTime "04:09:14"]
[Link "https://www.chess.com/game/live/77094431"]

1. e4 {[%clk 0:01:00]} 1... c5 {[%clk 0:01:00]} 2. Bb5 {[%clk 0:00:58.3]} 2... Nc6 {[%clk 0:00:59.7]} 3. Bxc6 {[%clk 0:00:57.7]} 3... bxc6 {[%clk 0:00:59.4]} 4. d4 {[%clk 0:00:57.1]} 4... Bb7 {[%clk 0:00:59.1]} 5. d5 {[%clk 0:00:55.8]} 5... cxd5 {[%clk 0:00:57.9]} 6. exd5 {[%clk 0:00:55.6]} 6... d6 {[%clk 0:00:56.9]} 7. Nf3 {[%clk 0:00:55.3]} 7... Qa5+ {[%clk 0:00:55.4]} 8. Nc3 {[%clk 0:00:54.3]} 8... Nf6 {[%clk 0:00:52]} 9. O-O {[%clk 0:00:52.9]} 9... g6 {[%clk 0:00:49.1]} 10. Bg5 {[%clk 0:00:50.5]} 10... Bg7 {[%clk 0:00:48.4]} 11. Re1 {[%clk 0:00:48.5]} 11... O-O {[%clk 0:00:47]} 12. Rxe7 {[%clk 0:00:46.6]} 12... Ba6 {[%clk 0:00:40.5]} 13. Re3 {[%clk 0:00:35.7]} 13... Rfe8 {[%clk 0:00:39.8]} 14. Qd2 {[%clk 0:00:32.3]} 14... Rxe3 {[%clk 0:00:38.2]} 15. Qxe3 {[%clk 0:00:32]} 15... Bb7 {[%clk 0:00:35.7]} 16. Re1 {[%clk 0:00:29.9]} 16... Nxd5 {[%clk 0:00:34.9]} 17. Nxd5 {[%clk 0:00:26.7]} 17... Bxd5 {[%clk 0:00:33.7]} 18. c4 {[%clk 0:00:26.2]} 18... Bxc4 {[%clk 0:00:32.4]} 19. b3 {[%clk 0:00:24.6]} 19... Be6 {[%clk 0:00:30.6]} 20. Be7 {[%clk 0:00:23.1]} 20... Bc3 {[%clk 0:00:28.3]} 21. Re2 {[%clk 0:00:20.8]} 21... Bd4 {[%clk 0:00:24.2]} 22. Nxd4 {[%clk 0:00:20]} 22... cxd4 {[%clk 0:00:23.6]} 23. Qe4 {[%clk 0:00:19.6]} 23... Bd5 {[%clk 0:00:20.9]} 24. Qg4 {[%clk 0:00:16.7]} 24... Re8 {[%clk 0:00:16.9]} 25. Qg5 {[%clk 0:00:13.6]} 25... Qc7 {[%clk 0:00:14.6]} 26. Qf6 {[%clk 0:00:13]} 26... Qxe7 {[%clk 0:00:08.3]} 27. Rxe7 {[%clk 0:00:09.6]} 27... Rxe7 {[%clk 0:00:07.2]} 28. Qxe7 {[%clk 0:00:09.3]} 28... Kg7 {[%clk 0:00:06.7]} 29. Qxd6 {[%clk 0:00:08.4]} 29... Kh6 {[%clk 0:00:05.9]} 30. Qxd5 {[%clk 0:00:07.5]} 30... f6 {[%clk 0:00:05.3]} 31. Qf3 {[%clk 0:00:07.1]} 31... Kg7 {[%clk 0:00:04.8]} 32. g3 {[%clk 0:00:06.4]} 32... h6 {[%clk 0:00:04.2]} 33. Kg2 {[%clk 0:00:06.1]} 33... g5 {[%clk 0:00:03.6]} 34. Qb7+ {[%clk 0:00:05.8]} 34... Kg6 {[%clk 0:00:03.1]} 35. Qxa7 {[%clk 0:00:05.5]} 35... h5 {[%clk 0:00:02.3]} 36. Qxd4 {[%clk 0:00:05.2]} 36... f5 {[%clk 0:00:01.3]} 37. Qd6+ {[%clk 0:00:03.9]} 37... Kf7 {[%clk 0:00:00.5]} 38. Qd5+ {[%clk 0:00:02.8]} 38... Kg6 {[%clk 0:00:00.2]} 39. Qd6+ {[%clk 0:00:02.3]} 1-0

[Event "Live Chess"]
[Site "Chess.com"]
[Date "2010.12.14"]
[Round "-"]
[White "jepone"]
[Black "hipposcottimus"]
[Result "0-1"]
[CurrentPosition "r1b2rk1/ppp2ppp/3b1n2/8/4P3/5B2/P1PB2Pq/1R1QR2K w - -"]
[Timezone "UTC"]
[ECO "C30"]
[ECOUrl "https://www.chess.com/openings/Kings-Gambit-Declined-Queens-Knight-Defense-3.Nf3"]
[UTCDate "2010.12.14"]
[UTCTime "04:05:38"]
[WhiteElo "1517"]
[BlackElo "1677"]
[TimeControl "60"]
[Termination "hipposcottimus won by checkmate"]
[StartTime "04:05:38"]
[EndDate "2010.12.14"]
[EndTime "04:06:48"]
[Link "https://www.chess.com/game/live/77094168"]

1. e4 {[%clk 0:01:00]} 1... e5 {[%clk 0:01:00]} 2. f4 {[%clk 0:00:59]} 2... Nc6 {[%clk 0:00:59.7]} 3. Nf3 {[%clk 0:00:58.5]} 3... d5 {[%clk 0:00:58]} 4. Nxe5 {[%clk 0:00:56]} 4... Nxe5 {[%clk 0:00:55.9]} 5. fxe5 {[%clk 0:00:53.6]} 5... dxe4 {[%clk 0:00:55.7]} 6. Bc4 {[%clk 0:00:51.2]} 6... Qd4 {[%clk 0:00:49.6]} 7. Be2 {[%clk 0:00:46.2]} 7... Qxe5 {[%clk 0:00:48.1]} 8. O-O {[%clk 0:00:44]} 8... Nf6 {[%clk 0:00:46.3]} 9. Nc3 {[%clk 0:00:42.9]} 9... Bc5+ {[%clk 0:00:45.8]} 10. Kh1 {[%clk 0:00:40.5]} 10... O-O {[%clk 0:00:45.5]} 11. d3 {[%clk 0:00:39.8]} 11... Bd4 {[%clk 0:00:44.3]} 12. dxe4 {[%clk 0:00:35.4]} 12... Bxc3 {[%clk 0:00:43.5]} 13. Bd2 {[%clk 0:00:31.2]} 13... Bxb2 {[%clk 0:00:41.1]} 14. Rb1 {[%clk 0:00:30.9]} 14... Ba3 {[%clk 0:00:37.8]} 15. Re1 {[%clk 0:00:26.5]} 15... Bd6 {[%clk 0:00:37.2]} 16. Bf3 {[%clk 0:00:22.8]} 16... Qxh2# {[%clk 0:00:35.7]} 0-1

[Event "Live Chess"]
[Site "Chess.com"]
[Date "2010.12.14"]
[Round "-"]
[White "hipposcottimus"]
[Black "jepone"]
[Result "0-1"]
[CurrentPosition "5r2/p5k1/2p3p1/7p/2PpQ3/3P4/P5PP/5qK1 w - -"]
[Timezone "UTC"]
[ECO "B20"]
[ECOUrl "https://www.chess.com/openings/Sicilian-Defense"]
[UTCDate "2010.12.14"]
[UTCTime "04:03:28"]
[WhiteElo "1672"]
[BlackElo "1522"]
[TimeControl "60"]
[Termination "jepone won by checkmate"]
[StartTime "04:03:28"]
[EndDate "2010.12.14"]
[EndTime "04:05:29"]
[Link "https://www.chess.com/game/live/77093752"]

1. e4 {[%clk 0:01:00]} 1... c5 {[%clk 0:01:00]} 2. Bb5 {[%clk 0:00:58.2]} 2... Nc6 {[%clk 0:00:59.2]} 3. Bxc6 {[%clk 0:00:57.5]} 3... bxc6 {[%clk 0:00:58.6]} 4. c4 {[%clk 0:00:57.2]} 4... Bb7 {[%clk 0:00:58.2]} 5. d3 {[%clk 0:00:56.8]} 5... g6 {[%clk 0:00:57.7]} 6. Nc3 {[%clk 0:00:56.5]} 6... Bg7 {[%clk 0:00:57.4]} 7. Nf3 {[%clk 0:00:56.1]} 7... Bxc3+ {[%clk 0:00:54.6]} 8. bxc3 {[%clk 0:00:55.8]} 8... Nf6 {[%clk 0:00:54.3]} 9. Bd2 {[%clk 0:00:54.6]} 9... O-O {[%clk 0:00:53.6]} 10. O-O {[%clk 0:00:54.2]} 10... d5 {[%clk 0:00:52.5]} 11. Re1 {[%clk 0:00:53.9]} 11... d4 {[%clk 0:00:50.7]} 12. e5 {[%clk 0:00:51.9]} 12... Nd7 {[%clk 0:00:50]} 13. e6 {[%clk 0:00:49.7]} 13... Nf6 {[%clk 0:00:46.3]} 14. exf7+ {[%clk 0:00:48]} 14... Rxf7 {[%clk 0:00:46]} 15. Ne5 {[%clk 0:00:47]} 15... Rf8 {[%clk 0:00:44.4]} 16. Bh6 {[%clk 0:00:44.8]} 16... Re8 {[%clk 0:00:42.9]} 17. Qf3 {[%clk 0:00:42.3]} 17... Qd6 {[%clk 0:00:35.9]} 18. Qh3 {[%clk 0:00:35]} 18... Bc8 {[%clk 0:00:34.9]} 19. Qh4 {[%clk 0:00:32.6]} 19... Bf5 {[%clk 0:00:29.2]} 20. Bg5 {[%clk 0:00:30.8]} 20... h5 {[%clk 0:00:23.2]} 21. cxd4 {[%clk 0:00:21.9]} 21... cxd4 {[%clk 0:00:21.3]} 22. Qg3 {[%clk 0:00:16.8]} 22... Qd7 {[%clk 0:00:18]} 23. Bxf6 {[%clk 0:00:16.3]} 23... Qe6 {[%clk 0:00:16.1]} 24. Nf3 {[%clk 0:00:15.9]} 24... Qxf6 {[%clk 0:00:15.4]} 25. Ng5 {[%clk 0:00:13.5]} 25... e5 {[%clk 0:00:11.4]} 26. f4 {[%clk 0:00:13.2]} 26... exf4 {[%clk 0:00:10.4]} 27. Qxf4 {[%clk 0:00:12.9]} 27... Rxe1+ {[%clk 0:00:08.9]} 28. Rxe1 {[%clk 0:00:12.6]} 28... Rf8 {[%clk 0:00:08.2]} 29. Rf1 {[%clk 0:00:12.3]} 29... Kg7 {[%clk 0:00:06.3]} 30. Ne4 {[%clk 0:00:11.8]} 30... Bxe4 {[%clk 0:00:04.8]} 31. Qxe4 {[%clk 0:00:11.3]} 31... Qxf1# {[%clk 0:00:03.6]} 0-1

[Event "Live Chess"]
[Site "Chess.com"]
[Date "2010.12.14"]
[Round "-"]
[White "jepone"]
[Black "hipposcottimus"]
[Result "0-1"]
[CurrentPosition "rnb1kb1r/pp3ppp/8/8/4p3/3P4/PPP1BqPP/R1BnRK2 w kq -"]
[Timezone "UTC"]
[ECO "C31"]
[ECOUrl "https://www.chess.com/openings/Kings-Gambit-Declined-Falkbeer-Milner-Barry-Variation"]
[UTCDate "2010.12.14"]
[UTCTime "04:01:43"]
[WhiteElo "1509"]
[BlackElo "1683"]
[TimeControl "60"]
[Termination "hipposcottimus won by checkmate"]
[StartTime "04:01:43"]
[EndDate "2010.12.14"]
[EndTime "04:03:19"]
[Link "https://www.chess.com/game/live/77093405"]

1. e4 {[%clk 0:01:00]} 1... e5 {[%clk 0:01:00]} 2. f4 {[%clk 0:00:58]} 2... d5 {[%clk 0:00:58.4]} 3. Nc3 {[%clk 0:00:51]} 3... d4 {[%clk 0:00:55.5]} 4. Nd5 {[%clk 0:00:50.2]} 4... c6 {[%clk 0:00:54.5]} 5. fxe5 {[%clk 0:00:34.8]} 5... cxd5 {[%clk 0:00:52.7]} 6. Nf3 {[%clk 0:00:34.5]} 6... dxe4 {[%clk 0:00:51]} 7. Nxd4 {[%clk 0:00:29.9]} 7... Qxd4 {[%clk 0:00:48.4]} 8. d3 {[%clk 0:00:26.8]} 8... Qxe5 {[%clk 0:00:39.5]} 9. Be2 {[%clk 0:00:22.4]} 9... Nf6 {[%clk 0:00:36.5]} 10. O-O {[%clk 0:00:21.3]} 10... Qd4+ {[%clk 0:00:34.2]} 11. Kh1 {[%clk 0:00:19.8]} 11... Ng4 {[%clk 0:00:31.3]} 12. Re1 {[%clk 0:00:19.2]} 12... Nf2+ {[%clk 0:00:29.8]} 13. Kg1 {[%clk 0:00:16.9]} 13... Nxd1+ {[%clk 0:00:28.7]} 14. Kh1 {[%clk 0:00:11.9]} 14... Nf2+ {[%clk 0:00:26.9]} 15. Kg1 {[%clk 0:00:09.6]} 15... Nd1+ {[%clk 0:00:26]} 16. Kf1 {[%clk 0:00:08.7]} 16... Qf2# {[%clk 0:00:23.8]} 0-1